[Event "Romanian Superleague 2022"]
[Site "Oradea"]
[Date "2022.09.23"]
[Round "3.27"]
[White "Szabo, Gergely-Andras-Gyula"]
[Black "Istratescu, Andrei"]
[Result "1-0"]
[ECO "C45"]
[WhiteElo "2512"]
[BlackElo "2408"]
[Annotator "TA"]
[PlyCount "41"]
[EventDate "2022.09.21"]
[EventType "team-tourn"]
[EventCountry "ROU"]
[SourceTitle "playchess.com"]
[Source "ChessBase"]
[SourceQuality "1"]
[TimeControl "40/5400+30:1800+30"]

{[%evp 14,41,0,5,25,22,60,51,58,45,48,47,52,27,33,12,20,12,4,4,60,61,130,121,360,352,352,354,606,605]} 1. e4 {[%emt 0:00:08]} e5 {[%emt 0:00:16]} 2. Nf3 {[%emt 0:00:05]} Nc6 {[%emt 0:00:03]} 3. d4 {[%emt 0:00:17]} exd4 {[%emt 0:00:15]} 4. Nxd4 {[%emt 0:00:04]} Bc5 {[%emt 0:05:18]} 5. Nb3 {[%emt 0:00:35]} Bb6 {[%emt 0:00:27]} 6. Nc3 {[%emt 0:00:08]} Nf6 {[%emt 0:09:59]} 7. Bg5 {[%emt 0:05:12][%cal Bc1g5,Bg5h4,Bh4g3][%mdl 32]} h6 {[%emt 0:08:07] 7...0-0 is the hot move.} 8. Bh4 {[%emt 0:01:59]} g5 {[%emt 0:00:47] C45: Scotch Game.} 9. Bg3 {[%emt 0:00:05] [#] Hoping for a4.} d6 {[%emt 0:00:02]} 10. Qd2 {[%emt 0:07:58]} Be6 {[%emt 0:05:39] White is slightly better.} 11. O-O-O {[%emt 0:04:50]} Qe7 {[%emt 0:15:39]} 12. Bb5 {[%emt 0:13:25]} O-O-O {[%emt 0:09:44]} 13. Bxc6 {[%emt 0:10:53]} bxc6 {[%emt 0:00:14]} 14. Nd4 {[%emt 0:01:04] [#]} Kb7 $146 {[%emt 0:00:50]} ({Predecessor:} 14... Bd7 15. Rhe1 Nh5 16. Nb3 Nxg3 17. hxg3 Qf6 18. f3 Qe5 19. a4 Qxg3 20. a5 Bc5 21. Nxc5 dxc5 {1-0 (43) Darini,P (2432)-Asbahi,M (2014) Chess.com INT 2021}) 15. Qe2 {[%emt 0:07:02]} Rhe8 {[%emt 0:19:25]} 16. Rhe1 {[%emt 0:04:35]} ({Don't go for} 16. Nxc6 $2 Kxc6 17. Qa6 Bc8 $19) 16... c5 {[%emt 0:16:43]} ({Better is} 16... Nd7 $11) 17. Nxe6 $14 {[%emt 0:04:33]} fxe6 {[%emt 0:02:19]} ({Black should play} 17... Qxe6 $14 18. Qf3 g4) 18. e5 $16 {[%emt 0:01:30] White is more active.} Ng8 {[%emt 0:00:02] [#]} (18... dxe5 $16 {keeps fighting.} 19. Bxe5 c6) 19. exd6 $18 {[%emt 0:03:35]} cxd6 {[%emt 0:00:03]} 20. Qf3+ {[%emt 0:01:28]} Kb8 $2 {[%emt 0:00:25]} (20... d5 21. Nxd5 g4) 21. Nb5 {[%emt 0:01:37] Weighted Error Value: White=0.05 (flawless) /Black=0.58} 1-0

[Event "Romanian Superleague 2022"]
[Site "Oradea"]
[Date "2022.09.23"]
[Round "3.28"]
[White "Vedmediuc, Serghei"]
[Black "Nevednichy, Vladislav"]
[Result "1/2-1/2"]
[ECO "B51"]
[WhiteElo "2430"]
[BlackElo "2472"]
[Annotator "TA"]
[PlyCount "113"]
[EventDate "2022.09.21"]
[EventType "team-tourn"]
[EventCountry "ROU"]
[SourceTitle "playchess.com"]
[Source "ChessBase"]
[SourceQuality "1"]
[TimeControl "40/5400+30:1800+30"]

{[%evp 18,113,31,22,16,22,25,0,-5,-10,20,16,50,43,43,56,37,47,68,67,75,60,80,68,84,84,91,93,162,119,114,147,126,91,105,100,106,4,55,54,64,64,66,43,62,65,47,35,66,18,25,18,12,0,0,0,20,21,15,18,23,20,17,17,17,9,12,8,8,8,8,8,8,8,8,8,18,0,11,8,8,0,0,0,0,0,0,0,0,0,0,0,0,0,0,0,0,-29986]} 1. e4 {[%emt 0:00:04]} c5 {[%emt 0:00:03]} 2. Nf3 {[%emt 0:00:08]} d6 {[%emt 0:00:03]} 3. Bb5+ {[%emt 0:01:11]} Nd7 {[%emt 0:00:05]} 4. c3 {[%emt 0:01:23]} Ngf6 {[%emt 0:00:30]} 5. Qe2 {[%emt 0:00:08]} a6 {[%emt 0:00:46]} 6. Ba4 {[%emt 0:00:25]} e5 {[%emt 0:05:29]} 7. d4 {[%emt 0:04:48]} b5 {[%emt 0:00:18]} 8. Bc2 {[%emt 0:00:28]} Be7 {[%emt 0:04:04]} 9. O-O {[%emt 0:19:04]} O-O {[%emt 0:01:04]} 10. Rd1 {[%emt 0:00:25]} Qc7 {[%emt 0:00:54] B51: Sicilian: Moscow Variation (3 Bb5+) without 3...Bd7.} 11. a4 {[%emt 0:00:21]} Rb8 {[%emt 0:06:23]} 12. Na3 {[%emt 0:24:30]} cxd4 {[%emt 0:12:20]} 13. cxd4 {[%emt 0:00:12][%cal Ra4b5] [#]} b4 $146 {[%emt 0:00:03]} ({Predecessor:} 13... bxa4 14. Bxa4 exd4 15. Nxd4 Nc5 16. Bc2 Re8 17. f3 d5 18. e5 Bf8 19. Be3 Qxe5 {½-½ (50) Balogh,C (2641)-Babula,V (2585) Austria 2012}) 14. Nc4 {[%emt 0:00:35]} b3 {[%emt 0:00:02]} 15. Bd3 {[%emt 0:00:29]} exd4 {[%emt 0:09:29]} 16. Bf4 {[%emt 0:08:37]} Nh5 {[%emt 0:03:39]} 17. Bd2 {[%emt 0:00:50]} Nc5 {[%emt 0:02:26]} 18. Nxd4 {[%emt 0:06:23] [#] Black must now prevent Ba5.} g6 {[%emt 0:15:00]} 19. Bh6 {[%emt 0:17:40]} Re8 {[%emt 0:01:04]} 20. Ne3 {[%emt 0:02:43]} Bb7 {[%emt 0:03:22]} 21. Bc4 {[%emt 0:01:42][%cal Oc4f7] Hoping for Bxf7+!} Bf6 {[%emt 0:08:55] [#]} 22. f3 {[%emt 0:01:14]} (22. Nxb3 $6 Nxb3 23. Bxb3 Bxe4 $11) 22... Qd8 {[%emt 0:14:01]} (22... Be5 $16 {is a better defense.}) 23. Qd2 {[%emt 0:01:49]} Bg5 {[%emt 0:05:15]} 24. Bxg5 {[%emt 0:00:15]} Qxg5 {[%emt 0:00:02]} 25. Bd5 {[%emt 0:01:05]} ({Don't do} 25. Nxb3 $6 Nxb3 26. Bxb3 Bxe4 27. Bxf7+ (27. fxe4 Rxb3 28. Nd5 Qxd2 $17) 27... Kxf7 $14) 25... h6 {[%emt 0:05:50]} 26. Bxb7 {[%emt 0:00:57]} Rxb7 {[%emt 0:00:03]} 27. Ng4 {[%emt 0:01:51]} (27. Nd5 $16) 27... Qxd2 {[%emt 0:00:10]} (27... Nxe4 $1 $11 28. Nxh6+ Kh7 29. Qxg5 (29. fxe4 Qxd2 30. Rxd2 Kxh6 $15) 29... Nxg5) 28. Rxd2 $14 {[%emt 0:00:03]} Kg7 {[%emt 0:01:24]} 29. Ne2 {[%emt 0:00:50]} f5 {[%emt 0:01:05]} 30. exf5 {[%emt 0:00:08]} gxf5 {[%emt 0:00:01]} 31. Nf2 {[%emt 0:00:09]} Rb4 {[%emt 0:00:24]} 32. Nc3 {[%emt 0:00:09]} Re6 {[%emt 0:00:49]} 33. a5 {[%emt 0:00:22]} (33. g3 $14 {is superior.}) 33... Nf4 $11 {[%emt 0:00:24]} 34. g3 {[%emt 0:01:31]} Ng6 {[%emt 0:00:02]} 35. Rad1 {[%emt 0:00:23]} Ne5 {[%emt 0:00:18]} 36. Rxd6 {[%emt 0:00:53]} Nxf3+ {[%emt 0:01:45]} 37. Kg2 {[%emt 0:00:20]} Rxd6 {[%emt 0:00:42]} 38. Rxd6 {[%emt 0:00:05]} Rd4 {[%emt 0:00:17]} 39. Rc6 {[%emt 0:02:21]} Ne1+ {[%emt 0:00:01] The position is equal.} 40. Kf1 {[%emt 0:00:00]} Ned3 {[%emt 0:00:00]} 41. Nxd3 {[%emt 0:01:12]} Nxd3 {[%emt 0:00:38]} 42. Rxa6 {[%emt 0:04:06] Ra7+ is the strong threat.} Nxb2 {[%emt 0:00:03][%mdl 4096] Endgame KRN-KRN} 43. Rb6 {[%emt 0:00:29]} Na4 {[%emt 0:08:11]} ({Don't take} 43... Nc4 44. Rb7+ Kf6 45. a6 $16) 44. Rxb3 {[%emt 0:07:41]} Nxc3 $1 {[%emt 0:00:06]} 45. Rxc3 {[%emt 0:00:06] Strongly threatening Ra3. KR-KR} Ra4 {[%emt 0:00:02] Inhibits Ra3.} 46. Rc5 {[%emt 0:00:11]} Kg6 {[%emt 0:00:21]} 47. h3 {[%emt 0:10:17]} Ra2 {[%emt 0:11:23]} 48. Rb5 {[%emt 0:04:06]} Kf6 {[%emt 0:00:46]} 49. Ke1 {[%emt 0:00:41]} Ra3 {[%emt 0:03:18]} 50. Rb6+ {[%emt 0:07:52]} Kg5 {[%emt 0:01:07]} 51. h4+ {[%emt 0:00:27]} Kh5 {[%emt 0:01:57]} 52. Kf2 {[%emt 0:00:58]} Rxa5 {[%emt 0:00:45]} 53. Kf3 {[%emt 0:00:06]} Rc5 {[%emt 0:06:06]} 54. Kf4 {[%emt 0:00:09]} Ra5 {[%emt 0:00:03]} 55. Rf6 {[%emt 0:00:37]} Rb5 {[%emt 0:00:11]} 56. Rxf5+ {[%emt 0:00:36]} Rxf5+ {[%emt 0:00:03]} 57. Ke4 $2 {[%emt 0:02:55][%mdl 40960] Weighted Error Value: White=0.10 (very precise) /Black=0.10 (very precise) . An unexpected result.} (57. Kxf5 $11) 1/2-1/2

[Event "Romanian Superleague 2022"]
[Site "Oradea"]
[Date "2022.09.23"]
[Round "3.29"]
[White "Stoleriu, George"]
[Black "Manea, Alexandru"]
[Result "1/2-1/2"]
[ECO "B10"]
[WhiteElo "2392"]
[BlackElo "2326"]
[Annotator "TA"]
[PlyCount "112"]
[EventDate "2022.09.21"]
[EventType "team-tourn"]
[EventCountry "ROU"]
[SourceTitle "playchess.com"]
[Source "ChessBase"]
[SourceQuality "1"]
[TimeControl "40/5400+30:1800+30"]

{[%evp 9,112,5,24,5,18,21,20,9,12,9,29,8,11,5,14,0,8,0,23,0,4,-3,15,0,39,39,40,24,90,70,64,75,170,177,158,166,266,79,98,8,3,6,3,8,8,13,18,8,9,8,8,8,7,0,0,-19,-10,-59,-46,-47,-51,-51,-56,-64,-56,-68,-72,-125,-151,-188,-126,-132,-150,-143,-109,-215,-212,-214,-215,-220,-203,-202,-68,-68,-68,-139,0,0,0,-208,-200,-337,-322,-29958,-8,-12,0,0,8,0,0,0,0,0,0]} 1. e4 {[%emt 0:00:05]} c6 {[%emt 0:00:51]} 2. Nf3 {[%emt 0:00:50]} d5 {[%emt 0:00:23]} 3. d3 {[%emt 0:00:18]} g6 {[%emt 1:30:46]} 4. e5 {[%emt 0:11:23]} Bg7 {[%emt 0:00:00]} 5. d4 {[%emt 0:01:25]} f6 {[%emt 0:00:00]} 6. exf6 {[%emt 0:02:50] B10: Caro-Kann: 2 d3 and 2 c4.} exf6 {[%emt 0:00:00]} 7. Bd3 {[%emt 0:04:12]} Ne7 {[%emt 0:00:00]} 8. O-O {[%emt 0:00:09] [#]} O-O $146 {[%emt 0:00:00]} ({Predecessor:} 8... Na6 9. Bxa6 bxa6 10. Re1 Kf7 11. c4 dxc4 12. Nc3 Nd5 13. Qa4 Nb6 14. Qxc6 Bd7 {0-1 (69) Pichot,A (2630)-Caruana,F (2820) chess24.com INT 2021}) 9. Re1 {[%emt 0:02:53]} a5 {[%emt 0:00:00]} 10. a4 {[%emt 0:02:24]} Na6 {[%emt 0:00:00]} 11. c3 {[%emt 0:01:15]} Bf5 {[%emt 0:00:00]} 12. Na3 {[%emt 0:18:54][%cal Bb1a3,Ba3c2,Bc2e3][%mdl 32]} Re8 {[%emt 0:00:00]} 13. Nc2 {[%emt 0:00:33]} Qd7 {[%emt 0:00:00]} 14. b3 {[%emt 0:11:12]} Nc7 {[%emt 0:00:00]} 15. Ba3 {[%emt 0:01:41]} Kf7 {[%emt 0:00:00]} 16. Ne3 {[%emt 0:12:09]} Be4 {[%emt 0:00:00]} 17. Bxe4 {[%emt 0:02:47]} dxe4 {[%emt 0:00:00]} 18. Nd2 {[%emt 0:00:04][%cal Bf3d2,Bd2c4,Bc4e5][%mdl 32]} f5 {[%emt 0:00:00]} (18... Ned5 $11 {remains equal.}) 19. Ndc4 $16 {[%emt 0:10:35]} Nc8 {[%emt 0:00:00] Prevents Nb6.} 20. f3 {[%emt 0:01:28] White is more active.} Nd5 {[%emt 0:00:00]} (20... Kg8 $16 {was necessary.}) 21. Ne5+ $1 $18 {[%emt 0:06:15]} Bxe5 {[%emt 0:00:10]} 22. dxe5 {[%emt 0:00:02]} Ncb6 {[%emt 0:05:03]} (22... Rxe5 $142 23. Qd4 Re8) 23. fxe4 $2 {[%emt 0:03:29]} (23. Nc4 $1 $18 {[%cal Rc4d6]}) 23... Nxe3 $16 {[%emt 0:00:14]} 24. Qxd7+ {[%emt 0:01:52]} (24. Rxe3 $16 {Rd3 is the strong threat.} Qxd1+ 25. Rxd1 Rxe5 26. Rh3) 24... Nxd7 $11 {[%emt 0:00:01]} 25. Rxe3 {[%emt 0:00:06] Threatening Rh3.} Rxe5 {[%emt 0:00:08]} 26. Rd3 {[%emt 0:00:02]} Nf6 {[%emt 0:00:10]} 27. exf5 {[%emt 0:00:28]} Rxf5 {[%emt 0:00:01]} 28. Re1 {[%emt 0:00:54] With the idea Re7+.} Re8 {[%emt 0:00:07] Prevents Re7+.} 29. Rxe8 {[%emt 0:00:18]} Kxe8 {[%emt 0:00:08][%mdl 4096] Endgame KRB-KRN} 30. Re3+ {[%emt 0:00:54]} Kd8 {[%emt 0:00:04]} 31. Re7 {[%emt 0:01:30]} b5 {[%emt 0:06:17][%cal Ob5b4]} 32. Ra7 {[%emt 0:02:19]} Nd5 {[%emt 0:01:23]} 33. axb5 {[%emt 0:00:43]} (33. Bd6 $11 {was preferrable.}) 33... Nxc3 $15 {[%emt 0:00:15] ( -> ...Ne2+)} 34. g4 {[%emt 0:00:57]} ({Of course not} 34. Be7+ Ke8 35. g4 Rxb5 $17) 34... Rxb5 {[%emt 0:00:07]} 35. Rxh7 {[%emt 0:00:21]} Rxb3 {[%emt 0:00:03]} 36. Bd6 {[%emt 0:00:31]} a4 {[%emt 0:00:06][%cal Ba5a4,Ba4a3][%mdl 32] aiming for ...a3.} 37. Be5 {[%emt 0:00:38]} a3 {[%emt 0:00:40]} 38. Ra7 {[%emt 0:00:24]} ({White should play} 38. Kg2) 38... Nb5 $17 {[%emt 0:01:39]} 39. Ra6 {[%emt 0:00:11]} Re3 {[%emt 0:00:49]} (39... Kd7 $19 {Strongly threatening ...Ke6.} 40. Kg2 Re3) 40. Bf6+ {[%emt 0:00:00]} Kc7 {[%emt 0:00:00]} 41. Kf2 {[%emt 0:13:47]} Re6 {[%emt 0:10:57]} 42. g5 {[%emt 0:02:11]} (42. Bg5 $17 {might work better.}) 42... Kb7 {[%emt 0:00:28]} 43. Ra4 {[%emt 0:00:09]} c5 $1 {[%emt 0:07:09]} 44. h4 {[%emt 0:02:06]} Kc6 {[%emt 0:00:29]} 45. Kg3 {[%emt 0:06:53][%cal Oh4h5]} Re3+ {[%emt 0:09:18]} (45... Kd5 $19 46. Kf3 c4) 46. Kf2 {[%emt 0:03:53]} Re8 {[%emt 0:01:51]} 47. Kg3 {[%emt 0:00:21]} (47. h5 $15 gxh5 48. g6) 47... Re3+ {[%emt 0:02:28]} (47... Kd5 $1 $17 {Hoping for ...Re4.} 48. h5 gxh5) 48. Kf2 $1 $11 {[%emt 0:00:05]} Re6 {[%emt 0:01:16]} (48... Rh3 $11 49. Kg2 Re3) 49. Kg3 $1 $19 {[%emt 0:00:25][%cal Oh4h5]} Kd5 {[%emt 0:00:07]} 50. h5 {[%emt 0:01:27]} (50. Kf4 $142) 50... gxh5 {[%emt 0:00:01][%cal Oh5h4]} 51. Kh4 $2 {[%emt 0:00:05] [#]} (51. Kh3 $19) 51... c4 $2 {[%emt 0:00:06]} (51... Re4+ $1 {mates} 52. Rxe4 Kxe4 53. Kxh5 Nd6 54. Bh8 c4 55. g6 Ne8 56. Kh4 Kd3 57. Kg4 c3 58. g7 {[#]} Nxg7 $1 {[%mdl 512]} 59. Bxg7 c2 60. Bh6 a2 61. Kf5 a1=Q 62. Bg5 Qa5+ 63. Kg6 Ke4 64. Bc1 Qa6+ 65. Kg5 Qa1 66. Kh5 Qxc1 67. Kg6 Qf4 68. Kh5 c1=Q 69. Kg6 Qg1+ 70. Kh7 Qh4#) 52. Kxh5 $11 {[%emt 0:00:49] The position is equal.} Rc6 {[%emt 0:01:06]} 53. g6 {[%emt 0:01:13][%cal Oa4a5] Threatens to win with Ra5!} c3 {[%emt 0:01:39]} (53... Rxf6 $2 54. g7 Kd4 55. g8=Q $18) 54. g7 {[%emt 0:00:12]} Rc8 {[%emt 0:00:00]} 55. Bxc3 {[%emt 0:00:37]} Nxc3 {[%emt 0:00:05]} 56. Rxa3 {[%emt 0:00:03]} Ne4 {[%emt 0:00:11] Quite a comeback for White.  Weighted Error Value: White=0.30/Black=0.33} 1/2-1/2

[Event "Romanian Superleague 2022"]
[Site "Oradea"]
[Date "2022.09.23"]
[Round "3.30"]
[White "Antonica, Dragos-Andrei"]
[Black "Ungureanu, Vlad"]
[Result "1/2-1/2"]
[ECO "E94"]
[WhiteElo "2321"]
[BlackElo "2287"]
[Annotator "TA"]
[PlyCount "83"]
[EventDate "2022.09.21"]
[EventType "team-tourn"]
[EventCountry "ROU"]
[SourceTitle "playchess.com"]
[Source "ChessBase"]
[SourceQuality "1"]
[TimeControl "40/5400+30:1800+30"]

{[%evp 17,83,38,72,74,100,105,110,103,122,104,135,92,107,102,84,50,97,66,81,42,47,42,28,31,48,24,90,92,90,91,99,117,119,51,86,82,74,44,53,52,56,44,44,44,44,0,44,44,44,44,44,44,44,44,44,-232,31,-108,-108,-108,-122,-137,-113,-387,-100,-140,-100,-194]} 1. d4 {[%emt 0:00:04]} Nf6 {[%emt 0:00:08]} 2. Nf3 {[%emt 0:00:22]} d6 {[%emt 0:01:41]} 3. c4 {[%emt 0:00:37]} g6 {[%emt 0:00:07]} 4. Nc3 {[%emt 0:00:04]} Bg7 {[%emt 0:00:06]} 5. e4 {[%emt 0:00:08]} O-O {[%emt 0:00:08]} 6. Be2 {[%emt 0:00:30]} Nbd7 {[%emt 0:00:26]} 7. O-O {[%emt 0:01:29]} e5 {[%emt 0:00:20]} 8. Be3 {[%emt 0:00:05]} Re8 {[%emt 0:00:23]} 9. Qc2 {[%emt 0:01:43]} c6 {[%emt 0:16:38] 9...b6 is the modern continuation.} 10. d5 {[%emt 0:00:44] E94: King's Indian: Classical: 6 Be2 e5 7 0-0: Various Black 7th moves.} c5 {[%emt 0:11:42]} 11. Ne1 {[%emt 0:03:10] White is more active.} a6 {[%emt 0:04:12]} 12. Rb1 {[%emt 0:08:40] [#] White is better.} h5 $146 {[%emt 0:02:19]} ({Predecessor:} 12... b6 13. Nd3 Qe7 14. f3 h6 15. b4 Nh7 16. a4 f5 17. a5 bxa5 18. bxc5 dxc5 {1-0 (33) Izquierdo,D (2295)-Barboza,M Uruguay 1991}) 13. f3 {[%emt 0:05:11]} Kh7 {[%emt 0:06:53]} 14. b4 {[%emt 0:06:04]} Bh6 {[%emt 0:03:16]} 15. Bxh6 {[%emt 0:12:06]} Kxh6 {[%emt 0:00:16]} 16. Nd3 {[%emt 0:00:03]} Qc7 {[%emt 0:14:26]} (16... cxb4 $14 {is more appropriate.} 17. Rxb4 (17. Nxb4 Qb6+ 18. Kh1 Kg7 $14) 17... b6) 17. Qc1+ {[%emt 0:12:26]} Kg7 {[%emt 0:00:18]} 18. Qa3 {[%emt 0:00:09]} cxb4 {[%emt 0:07:19]} 19. Qxb4 {[%emt 0:01:06]} b6 {[%emt 0:00:56]} 20. Rfc1 {[%emt 0:06:00]} Rb8 {[%emt 0:03:21]} 21. Bd1 {[%emt 0:05:23]} Nc5 {[%emt 0:06:47]} (21... Rb7 $11 {keeps the balance.}) 22. Nxc5 $16 {[%emt 0:03:12]} dxc5 {[%emt 0:00:53]} 23. Qa3 {[%emt 0:01:12]} h4 {[%emt 0:03:30]} 24. Rc2 {[%emt 0:07:03]} Nh5 {[%emt 0:07:26]} 25. Qc1 {[%emt 0:08:54]} ({White should play} 25. Rcb2 $16) 25... Qd8 {[%emt 0:01:27]} 26. Qd2 {[%emt 0:06:36]} Nf4 {[%emt 0:00:37]} 27. Kh1 {[%emt 0:05:04]} Qf6 {[%emt 0:02:31]} 28. Rcb2 {[%emt 0:01:17] And now Na4 would win.} Bd7 {[%emt 0:00:47][%cal Ob6b5]} 29. a4 {[%emt 0:01:32] Prevents b5.} a5 {[%emt 0:00:52]} 30. Rb3 {[%emt 0:03:07]} (30. Be2 {feels hotter.} Red8 31. Qe3 Qg5 32. Qf2) 30... Red8 {[%emt 0:01:15]} 31. R3b2 {[%emt 0:00:30]} Be8 {[%emt 0:01:01]} 32. Qe3 {[%emt 0:00:55]} Qg5 {[%emt 0:00:28]} 33. Rd2 {[%emt 0:00:44]} Rd6 {[%emt 0:00:39]} 34. Bc2 {[%emt 0:00:34]} Bd7 {[%emt 0:00:37]} 35. Rg1 {[%emt 0:00:35]} Rh8 {[%emt 0:00:22]} 36. Qe1 $2 {[%emt 0:00:38][%mdl 8192]} (36. Bd3 $14) 36... Rf6 $2 {[%emt 0:00:59]} ({Better is} 36... Nh5 $1 $19 {[%cal Rh5g3] ( -> ...Ng3+!)} 37. Rf1 Ng3+ $1 {[%mdl 512]} 38. Kg1 (38. hxg3 {is a self mate.} hxg3+ 39. Kg1 Rh1+ 40. Kxh1 Qh6+ 41. Kg1 Qh2#) 38... Nxf1 39. Kxf1 Qf4) 37. Rf2 {[%emt 0:00:25]} (37. Rf1 $14 {keeps the upper hand.}) 37... Nh5 $1 $17 {[%emt 0:01:04][%cal Bf4h5,Bh5g3,Bg3f1][%mdl 32]} 38. Rgf1 {[%emt 0:00:36] [#]} Ng3+ $1 {[%emt 0:01:36][%mdl 512]} 39. Kg1 {[%emt 0:00:04]} Nxf1 {[%emt 0:00:50]} 40. Rxf1 {[%emt 0:00:00][%mdl 8192] [#]} (40. Kxf1 $17 Qf4 41. Kg1) 40... Qf4 $2 {[%emt 0:00:00]} ({Weaker is} 40... h3 41. g3 $17) (40... Bh3 $1 $19 {[%csl Gh3][%cal Rg5g2] and Black stays clearly on top.} 41. Rf2 {[#]} Rxf3 $3 {[%mdl 512]}) 41. h3 {[%emt 0:04:22]} Rd6 {[%emt 0:01:51]} 42. Qc1 {[%emt 0:00:34] Weighted Error Value: White=0.42/Black=0.29 (precise)} (42. Kh1 $17) 1/2-1/2

[Event "Romanian Superleague 2022"]
[Site "Oradea"]
[Date "2022.09.24"]
[Round "4.1"]
[White "Tarlev, Konstantin"]
[Black "Pranav Vijay"]
[Result "1-0"]
[ECO "A27"]
[WhiteElo "2576"]
[BlackElo "2265"]
[Annotator "TA"]
[PlyCount "88"]
[EventDate "2022.09.21"]
[EventType "team-tourn"]
[EventCountry "ROU"]
[SourceTitle "playchess.com"]
[Source "ChessBase"]
[SourceQuality "1"]
[TimeControl "40/5400+30:1800+30"]

{[%evp 16,88,33,33,31,40,75,69,97,102,94,89,94,87,87,95,352,353,333,355,349,360,353,353,352,344,343,343,350,349,2057,357,357,357,398,387,395,391,391,391,391,386,548,430,441,426,513,507,520,505,500,536,543,432,855,849,937,937,677,632,29980,29974,29981,29974,29978,29979,29979,29980,29980,29981,29981,29982,29982,29983,29983]} 1. c4 {[%emt 0:05:21]} e5 {[%emt 0:00:22]} 2. Nc3 {[%emt 0:00:05]} Nc6 {[%emt 0:00:34]} 3. Nf3 {[%emt 0:00:04]} g6 {[%emt 0:02:21]} 4. d4 {[%emt 0:03:16]} exd4 {[%emt 0:00:28]} 5. Nxd4 {[%emt 0:00:05]} Bg7 {[%emt 0:00:13]} 6. Nxc6 {[%emt 0:01:12]} bxc6 {[%emt 0:00:16]} 7. g3 {[%emt 0:00:11]} Ne7 {[%emt 0:07:21]} 8. Bg2 {[%emt 0:00:26]} O-O {[%emt 0:00:30]} 9. O-O {[%emt 0:00:20]} a5 {[%emt 0:00:20] A27: English Opening: Three Knights Variation.} 10. Qc2 {[%emt 0:08:43]} Ba6 {[%emt 0:08:23]} 11. b3 $1 {[%emt 0:06:16] [#]} a4 $146 {[%emt 0:03:41] White is slightly better.} ({Predecessor:} 11... d5 12. Bb2 Re8 13. Rfd1 Qc8 14. cxd5 cxd5 15. Nxd5 Nxd5 16. Bxg7 Rxe2 17. Rd2 Qf5 18. Qxf5 gxf5 19. Rxd5 Kxg7 20. Rxa5 {1-0 (31) Ribli,Z (2534)-Borocz,I (2376) Hungary 2018}) 12. Bb2 {[%emt 0:00:18]} axb3 {[%emt 0:12:30]} 13. axb3 {[%emt 0:00:47]} Nf5 {[%emt 0:01:21]} 14. Ne4 {[%emt 0:10:54] Black must now prevent Nc5. White is more active.} Qe7 {[%emt 0:01:28] Against Nc5} 15. Rfd1 {[%emt 0:13:46] Against Nd4} d6 $2 {[%emt 0:06:46][%mdl 8192]} (15... Rfd8 $16) 16. g4 $1 $18 {[%emt 0:09:44][%cal Bg3g4,Bg4f5,Bf5f6,Bf6g7][%mdl 32]} d5 {[%emt 0:08:01]} 17. cxd5 {[%emt 0:05:41]} ({Less strong is} 17. gxf5 Bxb2 18. Qxb2 dxe4 $16) 17... cxd5 {[%emt 0:00:11]} 18. Rxd5 {[%emt 0:00:10]} ({Weaker is} 18. gxf5 Bxb2 19. Qxb2 dxe4 $11) (18. Bxg7 Nxg7 19. Ng3 (19. Rxd5 Bd3 $11) 19... c6 $11) 18... Bb7 {[%emt 0:00:30]} 19. Rxa8 $1 {[%emt 0:02:45]} Rxa8 {[%emt 0:10:17] [#]} 20. gxf5 $1 {[%emt 0:05:25] Strongly threatening f6.} Bxd5 {[%emt 0:00:08] [#]} 21. f6 $1 {[%emt 0:00:47]} ({And not} 21. Bxg7 gxf5 22. Ng3 (22. Nf6+ Kxg7 23. Nh5+ Kh6 $15) 22... Bxg2 23. Kxg2 f4 $11) 21... Qb4 {[%emt 0:00:16] Hoping for ...Bh6.} 22. fxg7 {[%emt 0:01:58] White threatens Nf6+ and mate.} Qe1+ {[%emt 0:00:09]} 23. Bf1 {[%emt 0:00:04] Nf6+ would kill now.} Bxe4 {[%emt 0:00:07]} 24. Qxe4 {[%emt 0:00:10][%cal Re4a8] Chess con chili.} Rb8 {[%emt 0:00:07]} 25. Qe5 {[%emt 0:10:21]} Qb4 {[%emt 0:01:21]} 26. Qxc7 {[%emt 0:00:08]} Qxb3 {[%emt 0:00:05]} 27. Bd4 {[%emt 0:01:26]} Ra8 {[%emt 0:00:42]} 28. e3 {[%emt 0:00:18]} Qd1 {[%emt 0:00:14]} (28... Qb8 $142 29. Qc6 Qd8) 29. Qf4 {[%emt 0:01:05]} Rc8 {[%emt 0:01:34]} 30. Kg2 {[%emt 0:00:04][%cal Of1c4]} Qb3 {[%emt 0:00:10] Against Bc4} 31. Be2 {[%emt 0:00:24]} Qd5+ {[%emt 0:03:06]} 32. Bf3 {[%emt 0:00:44]} Qb5 {[%emt 0:00:01]} 33. h4 {[%emt 0:04:55]} Re8 {[%emt 0:00:30]} 34. Qf6 {[%emt 0:00:52] White wants to mate with Bc6.} Rc8 {[%emt 0:00:32] Against Bc6} (34... Re6 $142) 35. h5 {[%emt 0:01:23]} gxh5 {[%emt 0:00:08]} 36. Be4 {[%emt 0:01:21] Threatening mate with Qh6.} Qd7 {[%emt 0:01:13]} 37. f3 {[%emt 0:00:17] Intending Qe5 and mate.} Qb5 {[%emt 0:00:39]} 38. Kg3 {[%emt 0:01:36] White mates.} Qa5 {[%emt 0:03:53]} 39. Kh3 {[%emt 0:01:04]} Qe1 {[%emt 0:02:14] [#]} 40. Bxh7+ $1 {[%emt 0:00:00][%mdl 512]} Kxh7 {[%emt 0:00:00]} 41. Qf5+ {[%emt 0:02:38]} Kh6 {[%emt 0:00:22]} 42. Qxc8 {[%emt 0:00:22]} Qh1+ {[%emt 0:00:43]} 43. Kg3 {[%emt 0:00:04]} Qe1+ {[%emt 0:00:06] [#]} 44. Kf4 $1 {[%emt 0:00:19]} Qh4+ {[%emt 0:58:37] Black got outplayed after the opening.  Weighted Error Value: White=0.14 (very precise) /Black=0.34} 1-0